[Event "*** SCC Grand Prix: Titled Tuesday Blitz"]
[Site "Chess.com"]
[Date "2020.08.25"]
[Round "3"]
[White "annacramling"]
[Black "Schachmalanders"]
[Result "0-1"]
[WhiteElo "2128"]
[BlackElo "2342"]
[TimeControl "180+1"]
[EndTime "10:29:30 PDT"]
[Termination "Schachmalanders won on time"]

1. d4 {[%clk 0:03:00.9]} 1... d5 {[%clk 0:02:59.7]} 2. c4 {[%clk 0:02:59.8]}
2... e6 {[%clk 0:02:59.7]} 3. Nc3 {[%clk 0:02:57.9]} 3... c6 {[%clk 0:02:59.7]}
4. e3 {[%clk 0:02:56]} 4... f5 {[%clk 0:02:59.4]} 5. Nf3 {[%clk 0:02:44.9]} 5...
Nf6 {[%clk 0:02:59.6]} 6. Bd3 {[%clk 0:02:41.4]} 6... Bd6 {[%clk 0:02:59.6]} 7.
h3 {[%clk 0:02:38.6]} 7... O-O {[%clk 0:02:59.4]} 8. Qc2 {[%clk 0:02:35.3]} 8...
Ne4 {[%clk 0:02:59]} 9. Nd2 {[%clk 0:02:24.5]} 9... b6 {[%clk 0:02:57.7]} 10.
Ndxe4 {[%clk 0:02:17.7]} 10... fxe4 {[%clk 0:02:57.1]} 11. Be2 {[%clk 0:02:18]}
11... Bb7 {[%clk 0:02:52.3]} 12. Bd2 {[%clk 0:02:14.2]} 12... Nd7 {[%clk
0:02:51.9]} 13. O-O-O {[%clk 0:02:13.9]} 13... c5 {[%clk 0:02:49.2]} 14. Bg4
{[%clk 0:01:51.8]} 14... Qe7 {[%clk 0:02:43.4]} 15. cxd5 {[%clk 0:01:41.7]}
15... exd5 {[%clk 0:02:42.9]} 16. Be1 {[%clk 0:01:38]} 16... Nf6 {[%clk
0:02:39]} 17. dxc5 {[%clk 0:01:34.1]} 17... bxc5 {[%clk 0:02:32]} 18. Qb3 {[%clk
0:01:23.4]} 18... Rab8 {[%clk 0:02:22.2]} 19. Qc2 {[%clk 0:01:08.6]} 19... Be5
{[%clk 0:02:19.6]} 20. f4 {[%clk 0:00:49.1]} 20... exf3 {[%clk 0:02:15.5]} 21.
Bxf3 {[%clk 0:00:48.7]} 21... Rfd8 {[%clk 0:02:09.9]} 22. Bh4 {[%clk 0:00:46.5]}
22... d4 {[%clk 0:02:03]} 23. Ne4 {[%clk 0:00:29.7]} 23... Kh8 {[%clk
0:01:54.8]} 24. Nxf6 {[%clk 0:00:29.4]} 24... Bxf6 {[%clk 0:01:55]} 25. Bxf6
{[%clk 0:00:27.1]} 25... Qxf6 {[%clk 0:01:55.9]} 26. exd4 {[%clk 0:00:26.4]}
26... cxd4 {[%clk 0:01:55.4]} 27. Bxb7 {[%clk 0:00:26.3]} 27... Rxb7 {[%clk
0:01:52.9]} 28. Kb1 {[%clk 0:00:26.3]} 28... h6 {[%clk 0:01:51.2]} 29. Rhf1
{[%clk 0:00:25.4]} 29... Qe5 {[%clk 0:01:17]} 30. Rfe1 {[%clk 0:00:21.8]} 30...
Qb5 {[%clk 0:01:13.1]} 31. b3 {[%clk 0:00:21.4]} 31... d3 {[%clk 0:01:12.4]} 32.
Qf2 {[%clk 0:00:20.2]} 32... a5 {[%clk 0:01:05.1]} 33. Ka1 {[%clk 0:00:18.4]}
33... a4 {[%clk 0:01:04]} 34. bxa4 {[%clk 0:00:15.2]} 34... Qxa4 {[%clk
0:01:04.1]} 35. Rb1 {[%clk 0:00:13.9]} 35... Rxb1+ {[%clk 0:01:01]} 36. Rxb1
{[%clk 0:00:14.8]} 36... d2 {[%clk 0:01:01.4]} 0-1

[Event "*** SCC Grand Prix: Titled Tuesday Blitz"]
[Site "Chess.com"]
[Date "2020.08.25"]
[Round "3"]
[White "vugarrasulov"]
[Black "GameOverBro"]
[Result "1-0"]
[WhiteElo "2818"]
[BlackElo "2437"]
[TimeControl "180+1"]
[EndTime "10:29:31 PDT"]
[Termination "vugarrasulov won on time"]

1. g3 {[%clk 0:03:00.9]} 1... d6 {[%clk 0:02:56.2]} 2. Bg2 {[%clk 0:03:01.8]}
2... e5 {[%clk 0:02:54]} 3. c4 {[%clk 0:03:02.2]} 3... g6 {[%clk 0:02:48.5]} 4.
Nc3 {[%clk 0:03:02.5]} 4... Bg7 {[%clk 0:02:48.6]} 5. h4 {[%clk 0:03:02.7]} 5...
h6 {[%clk 0:02:48.4]} 6. e3 {[%clk 0:03:01.9]} 6... Nc6 {[%clk 0:02:48.4]} 7.
Nge2 {[%clk 0:03:02.4]} 7... f5 {[%clk 0:02:42.3]} 8. d3 {[%clk 0:03:01.8]} 8...
Nf6 {[%clk 0:02:42.5]} 9. Rb1 {[%clk 0:03:01.7]} 9... a5 {[%clk 0:02:41.9]} 10.
a3 {[%clk 0:03:01.7]} 10... Be6 {[%clk 0:02:41]} 11. b4 {[%clk 0:03:01.8]} 11...
axb4 {[%clk 0:02:40.7]} 12. axb4 {[%clk 0:03:02.7]} 12... Qd7 {[%clk 0:02:40.6]}
13. b5 {[%clk 0:03:02.5]} 13... Nd8 {[%clk 0:02:40.5]} 14. e4 {[%clk 0:03:02.6]}
14... O-O {[%clk 0:02:21]} 15. Nd5 {[%clk 0:03:02.1]} 15... Bxd5 {[%clk
0:02:14.4]} 16. cxd5 {[%clk 0:03:03]} 16... c5 {[%clk 0:02:08.3]} 17. bxc6
{[%clk 0:03:02.3]} 17... bxc6 {[%clk 0:02:08.4]} 18. dxc6 {[%clk 0:03:02]} 18...
Nxc6 {[%clk 0:02:09.3]} 19. exf5 {[%clk 0:03:01.5]} 19... gxf5 {[%clk
0:02:06.3]} 20. O-O {[%clk 0:03:02.4]} 20... d5 {[%clk 0:01:55.5]} 21. d4 {[%clk
0:03:01.8]} 21... e4 {[%clk 0:01:53.3]} 22. Nf4 {[%clk 0:03:02.3]} 22... Ng4
{[%clk 0:01:47.3]} 23. Be3 {[%clk 0:02:59.1]} 23... Ra3 {[%clk 0:01:35.1]} 24.
Rb3 {[%clk 0:02:57]} 24... Rfa8 {[%clk 0:01:33.1]} 25. Bh3 {[%clk 0:02:54.8]}
25... R8a4 {[%clk 0:00:41.3]} 26. Bxg4 {[%clk 0:02:49.7]} 26... fxg4 {[%clk
0:00:42.2]} 27. Rxa3 {[%clk 0:02:49.7]} 27... Rxa3 {[%clk 0:00:42.1]} 28. Qc1
{[%clk 0:02:50.3]} 28... Ra4 {[%clk 0:00:37.5]} 29. Qc5 {[%clk 0:02:48.9]} 29...
Rc4 {[%clk 0:00:34]} 30. Qxd5+ {[%clk 0:02:48.7]} 30... Qxd5 {[%clk 0:00:34]}
31. Nxd5 {[%clk 0:02:49.4]} 31... Nxd4 {[%clk 0:00:31]} 32. Bxd4 {[%clk
0:02:45.2]} 32... Bxd4 {[%clk 0:00:30.7]} 33. Rd1 {[%clk 0:02:40]} 33... Kf7
{[%clk 0:00:29.3]} 34. Nf4 {[%clk 0:02:39.6]} 34... Kf6 {[%clk 0:00:26.2]} 35.
Kf1 {[%clk 0:02:39.5]} 35... Ke5 {[%clk 0:00:25.4]} 36. Ne2 {[%clk 0:02:39.4]}
36... Bc5 {[%clk 0:00:24]} 37. Rd7 {[%clk 0:02:39.4]} 37... Rb4 {[%clk
0:00:20.4]} 38. Nf4 {[%clk 0:02:37.7]} 38... Rb1+ {[%clk 0:00:19.8]} 39. Kg2
{[%clk 0:02:37.5]} 39... Rc1 {[%clk 0:00:16.9]} 40. Rc7 {[%clk 0:02:12.7]} 40...
Rc2 {[%clk 0:00:15.3]} 41. Kh1 {[%clk 0:02:01.4]} 41... Kd6 {[%clk 0:00:14.7]}
42. Rh7 {[%clk 0:02:01.3]} 42... Rxf2 {[%clk 0:00:13.7]} 43. Rxh6+ {[%clk
0:02:01.8]} 43... Ke5 {[%clk 0:00:13.8]} 44. Rh5+ {[%clk 0:01:58.4]} 44... Kd6
{[%clk 0:00:12.7]} 45. Rd5+ {[%clk 0:01:55.8]} 45... Kc6 {[%clk 0:00:12.9]} 46.
Rg5 {[%clk 0:01:55.4]} 46... Rf1+ {[%clk 0:00:10.9]} 47. Kh2 {[%clk 0:01:55.7]}
47... Rf2+ {[%clk 0:00:11.2]} 48. Ng2 {[%clk 0:01:54.6]} 48... e3 {[%clk
0:00:11.4]} 49. Rxg4 {[%clk 0:01:54.9]} 49... Kd5 {[%clk 0:00:10.9]} 50. Kh3
{[%clk 0:01:50.6]} 50... e2 {[%clk 0:00:11.1]} 51. Rg5+ {[%clk 0:01:45.8]} 51...
Kc6 {[%clk 0:00:10.9]} 52. Rg6+ {[%clk 0:01:45.6]} 52... Kb5 {[%clk 0:00:10.3]}
53. Re6 {[%clk 0:01:45.4]} 53... Kc4 {[%clk 0:00:04.4]} 54. Nf4 {[%clk 0:01:43]}
1-0

[Event "*** SCC Grand Prix: Titled Tuesday Blitz"]
[Site "Chess.com"]
[Date "2020.08.25"]
[Round "3"]
[White "Zhani-Z"]
[Black "PawnEatingZombie"]
[Result "1-0"]
[WhiteElo "2488"]
[BlackElo "2227"]
[TimeControl "180+1"]
[EndTime "10:29:31 PDT"]
[Termination "Zhani-Z won by resignation"]

1. e4 {[%clk 0:03:00.9]} 1... c6 {[%clk 0:03:00.1]} 2. d4 {[%clk 0:02:59.4]}
2... d5 {[%clk 0:03:00.4]} 3. exd5 {[%clk 0:03:00]} 3... cxd5 {[%clk 0:03:00.9]}
4. Bd3 {[%clk 0:03:00.5]} 4... Nc6 {[%clk 0:03:00.7]} 5. c3 {[%clk 0:03:01.1]}
5... Qc7 {[%clk 0:03:01]} 6. h3 {[%clk 0:03:00.1]} 6... Nf6 {[%clk 0:02:58.7]}
7. Nf3 {[%clk 0:03:00.3]} 7... g6 {[%clk 0:02:58]} 8. O-O {[%clk 0:02:58.5]}
8... Bg7 {[%clk 0:02:57.8]} 9. Re1 {[%clk 0:02:52.5]} 9... O-O {[%clk
0:02:53.7]} 10. Nbd2 {[%clk 0:02:46.3]} 10... Bf5 {[%clk 0:02:53]} 11. Bf1
{[%clk 0:02:43.8]} 11... Rfe8 {[%clk 0:02:39.7]} 12. Nb3 {[%clk 0:02:42.1]}
12... Rad8 {[%clk 0:02:30.5]} 13. a4 {[%clk 0:02:33.2]} 13... e5 {[%clk
0:02:19.2]} 14. dxe5 {[%clk 0:02:32.4]} 14... Nxe5 {[%clk 0:02:19]} 15. Nxe5
{[%clk 0:02:32.2]} 15... Rxe5 {[%clk 0:02:13]} 16. Rxe5 {[%clk 0:02:20.3]} 16...
Qxe5 {[%clk 0:02:12.2]} 17. Be3 {[%clk 0:02:17.4]} 17... b6 {[%clk 0:01:56.4]}
18. a5 {[%clk 0:02:13.6]} 18... Qd6 {[%clk 0:01:45.2]} 19. axb6 {[%clk
0:01:54.8]} 19... axb6 {[%clk 0:01:44.7]} 20. Ra6 {[%clk 0:01:53.8]} 20... Rb8
{[%clk 0:01:44.1]} 21. Nd4 {[%clk 0:01:42.6]} 21... Bd7 {[%clk 0:01:40.6]} 22.
Qf3 {[%clk 0:01:31.3]} 22... Ne4 {[%clk 0:01:36.7]} 23. Bf4 {[%clk 0:01:26.9]}
23... Be5 {[%clk 0:01:36.3]} 24. Bxe5 {[%clk 0:01:26.1]} 24... Qxe5 {[%clk
0:01:36.4]} 25. Qe3 {[%clk 0:01:22.8]} 25... Qf6 {[%clk 0:01:19.6]} 26. Ra7
{[%clk 0:01:13.7]} 26... Be6 {[%clk 0:01:00.5]} 27. Nc6 {[%clk 0:01:12.1]} 27...
Re8 {[%clk 0:00:50.9]} 28. Qxb6 {[%clk 0:01:11.3]} 28... Nd2 {[%clk 0:00:26.3]}
29. Qd4 {[%clk 0:00:42.6]} 29... Qg5 {[%clk 0:00:13.2]} 30. Ne7+ {[%clk
0:00:42.3]} 1-0

[Event "*** SCC Grand Prix: Titled Tuesday Blitz"]
[Site "Chess.com"]
[Date "2020.08.25"]
[Round "3"]
[White "snowlord"]
[Black "djano"]
[Result "0-1"]
[WhiteElo "2800"]
[BlackElo "2453"]
[TimeControl "180+1"]
[EndTime "10:29:33 PDT"]
[Termination "djano won by resignation"]

1. Nf3 {[%clk 0:02:51.6]} 1... Nc6 {[%clk 0:02:55.2]} 2. c4 {[%clk 0:02:52.1]}
2... e5 {[%clk 0:02:55.1]} 3. Nc3 {[%clk 0:02:51.9]} 3... Nf6 {[%clk 0:02:53.7]}
4. e3 {[%clk 0:02:51.8]} 4... Bb4 {[%clk 0:02:49.8]} 5. Qc2 {[%clk 0:02:51.2]}
5... O-O {[%clk 0:02:49.8]} 6. Nd5 {[%clk 0:02:50.6]} 6... Re8 {[%clk 0:02:46]}
7. Qf5 {[%clk 0:02:51]} 7... d6 {[%clk 0:02:33.1]} 8. Nxf6+ {[%clk 0:02:50.6]}
8... Qxf6 {[%clk 0:02:33.3]} 9. Qxf6 {[%clk 0:02:50.9]} 9... gxf6 {[%clk
0:02:34.2]} 10. a3 {[%clk 0:02:51.3]} 10... Bc5 {[%clk 0:02:33.5]} 11. b3 {[%clk
0:02:52]} 11... a5 {[%clk 0:02:30.9]} 12. Bb2 {[%clk 0:02:51.7]} 12... Bf5
{[%clk 0:02:24.2]} 13. d3 {[%clk 0:02:51.5]} 13... Bg6 {[%clk 0:02:11.8]} 14.
Nh4 {[%clk 0:02:49.3]} 14... Rab8 {[%clk 0:02:07.1]} 15. Rb1 {[%clk 0:02:06.6]}
15... Ne7 {[%clk 0:02:00.4]} 16. Bc3 {[%clk 0:02:02.7]} 16... Ra8 {[%clk
0:01:57.6]} 17. b4 {[%clk 0:01:58.1]} 17... axb4 {[%clk 0:01:49.9]} 18. axb4
{[%clk 0:01:59]} 18... Bb6 {[%clk 0:01:50.2]} 19. Be2 {[%clk 0:01:58]} 19... Ra2
{[%clk 0:01:46.9]} 20. Nxg6 {[%clk 0:01:47.2]} 20... hxg6 {[%clk 0:01:46]} 21.
Bf3 {[%clk 0:01:38.5]} 21... c6 {[%clk 0:01:44.4]} 22. O-O {[%clk 0:01:38.3]}
22... Ra3 {[%clk 0:01:37.4]} 23. Rfc1 {[%clk 0:01:37.5]} 23... Rea8 {[%clk
0:01:33.6]} 24. g4 {[%clk 0:01:35.2]} 24... f5 {[%clk 0:01:32.8]} 25. g5 {[%clk
0:01:34.7]} 25... Kf8 {[%clk 0:01:20.4]} 26. c5 {[%clk 0:01:34.2]} 26... Bc7
{[%clk 0:01:18.7]} 27. cxd6 {[%clk 0:01:28.3]} 27... Bxd6 {[%clk 0:01:19.6]} 28.
b5 {[%clk 0:01:28.4]} 28... Nd5 {[%clk 0:01:09.1]} 29. bxc6 {[%clk 0:01:24.5]}
29... Nxc3 {[%clk 0:01:01.2]} 30. cxb7 {[%clk 0:01:23.9]} 30... Rb8 {[%clk
0:00:57.4]} 31. Rb6 {[%clk 0:01:18.8]} 31... Ke7 {[%clk 0:00:50.3]} 32. Rc6
{[%clk 0:01:16.4]} 32... Na2 {[%clk 0:00:37.1]} 33. Ra1 {[%clk 0:01:07.4]} 33...
Nb4 {[%clk 0:00:29]} 34. Rxa3 {[%clk 0:01:02.2]} 34... Nxc6 {[%clk 0:00:28.1]}
35. Rc3 {[%clk 0:00:54.6]} 35... e4 {[%clk 0:00:27.3]} 36. dxe4 {[%clk
0:00:54.2]} 36... Ne5 {[%clk 0:00:27.7]} 37. Kg2 {[%clk 0:00:45.8]} 37... Nxf3
{[%clk 0:00:26.5]} 38. exf5 {[%clk 0:00:46.7]} 38... Nh4+ {[%clk 0:00:25.2]} 0-1

[Event "*** SCC Grand Prix: Titled Tuesday Blitz"]
[Site "Chess.com"]
[Date "2020.08.25"]
[Round "3"]
[White "GMJustin"]
[Black "sertalzin"]
[Result "1-0"]
[WhiteElo "2245"]
[BlackElo "1871"]
[TimeControl "180+1"]
[EndTime "10:29:35 PDT"]
[Termination "GMJustin won on time"]

1. d4 {[%clk 0:03:00.9]} 1... d5 {[%clk 0:02:58.8]} 2. c4 {[%clk 0:03:00.2]}
2... c6 {[%clk 0:02:58.5]} 3. Nf3 {[%clk 0:02:59.6]} 3... Nf6 {[%clk 0:02:58.1]}
4. Nc3 {[%clk 0:02:59]} 4... e6 {[%clk 0:02:57.8]} 5. e3 {[%clk 0:02:56.7]} 5...
Nbd7 {[%clk 0:02:57.3]} 6. Bd2 {[%clk 0:02:55.8]} 6... Bd6 {[%clk 0:02:55.3]} 7.
Bd3 {[%clk 0:02:55.4]} 7... O-O {[%clk 0:02:54.6]} 8. O-O {[%clk 0:02:53.9]}
8... b6 {[%clk 0:02:54.4]} 9. e4 {[%clk 0:02:41.4]} 9... dxe4 {[%clk 0:02:53.7]}
10. Nxe4 {[%clk 0:02:41.1]} 10... Nxe4 {[%clk 0:02:52.6]} 11. Bxe4 {[%clk
0:02:40.9]} 11... Bb7 {[%clk 0:02:50.9]} 12. b4 {[%clk 0:01:41.4]} 12... Nf6
{[%clk 0:02:40.5]} 13. Bc2 {[%clk 0:01:41.1]} 13... c5 {[%clk 0:02:32.6]} 14.
dxc5 {[%clk 0:01:40.8]} 14... bxc5 {[%clk 0:02:31.8]} 15. b5 {[%clk 0:01:41]}
15... Qe7 {[%clk 0:01:42.7]} 16. Qe2 {[%clk 0:01:38.2]} 16... Rfd8 {[%clk
0:01:38.7]} 17. Bc3 {[%clk 0:01:35.3]} 17... Rd7 {[%clk 0:01:02.5]} 18. Ne5
{[%clk 0:01:32.3]} 18... Rc7 {[%clk 0:00:58.3]} 19. a4 {[%clk 0:01:26.3]} 19...
Nd7 {[%clk 0:00:47.5]} 20. Nxd7 {[%clk 0:00:54.5]} 20... Rxd7 {[%clk 0:00:41.8]}
21. Rad1 {[%clk 0:00:53.3]} 21... Qh4 {[%clk 0:00:21.6]} 22. g3 {[%clk
0:00:42.5]} 22... Qh3 {[%clk 0:00:21]} 23. Be4 {[%clk 0:00:39.3]} 23... Bxe4
{[%clk 0:00:18.4]} 24. Qxe4 {[%clk 0:00:38.7]} 24... Rdd8 {[%clk 0:00:12.4]} 25.
Rxd6 {[%clk 0:00:35.6]} 1-0

[Event "*** SCC Grand Prix: Titled Tuesday Blitz"]
[Site "Chess.com"]
[Date "2020.08.25"]
[Round "3"]
[White "Shuvalov"]
[Black "CzechmVIII"]
[Result "1-0"]
[WhiteElo "2402"]
[BlackElo "2165"]
[TimeControl "180+1"]
[EndTime "10:29:39 PDT"]
[Termination "Shuvalov won on time"]

1. Nf3 {[%clk 0:03:00.9]} 1... c5 {[%clk 0:02:59.7]} 2. c4 {[%clk 0:03:00.5]}
2... Nf6 {[%clk 0:02:59.9]} 3. Nc3 {[%clk 0:02:59.7]} 3... b6 {[%clk 0:03:00.1]}
4. g3 {[%clk 0:02:59.8]} 4... Bb7 {[%clk 0:02:59.8]} 5. Bg2 {[%clk 0:03:00.4]}
5... e6 {[%clk 0:03:00.5]} 6. O-O {[%clk 0:03:00.8]} 6... Be7 {[%clk 0:03:00.5]}
7. d4 {[%clk 0:03:01.2]} 7... cxd4 {[%clk 0:03:01.4]} 8. Qxd4 {[%clk 0:03:01.2]}
8... d6 {[%clk 0:03:01.8]} 9. Bg5 {[%clk 0:02:58.6]} 9... a6 {[%clk 0:03:01.3]}
10. Bxf6 {[%clk 0:02:58.4]} 10... Bxf6 {[%clk 0:03:01.3]} 11. Qf4 {[%clk
0:02:58.4]} 11... Bxf3 {[%clk 0:02:50.9]} 12. Qxf3 {[%clk 0:02:53.3]} 12... Ra7
{[%clk 0:02:50.4]} 13. Rac1 {[%clk 0:02:51.6]} 13... O-O {[%clk 0:02:47.1]} 14.
Rfd1 {[%clk 0:02:50]} 14... Rd7 {[%clk 0:02:43.5]} 15. Qd3 {[%clk 0:02:44.2]}
15... Qc7 {[%clk 0:02:37.7]} 16. b3 {[%clk 0:02:43.3]} 16... Nc6 {[%clk
0:02:24.6]} 17. e3 {[%clk 0:02:34.3]} 17... Rfd8 {[%clk 0:02:16.1]} 18. Qe2
{[%clk 0:02:30.4]} 18... h6 {[%clk 0:02:04.4]} 19. h4 {[%clk 0:02:29]} 19... Ne7
{[%clk 0:01:21.8]} 20. Ne4 {[%clk 0:02:25.6]} 20... Be5 {[%clk 0:00:52.1]} 21.
f4 {[%clk 0:02:24.9]} 21... Bf6 {[%clk 0:00:52.5]} 22. Nxf6+ {[%clk 0:02:24.6]}
22... gxf6 {[%clk 0:00:53.4]} 23. g4 {[%clk 0:02:22.2]} 23... Qc5 {[%clk
0:00:48.9]} 24. Kh2 {[%clk 0:02:20.7]} 24... h5 {[%clk 0:00:38]} 25. g5 {[%clk
0:02:16]} 25... Nf5 {[%clk 0:00:36.9]} 26. gxf6 {[%clk 0:01:47.4]} 26... Qxe3
{[%clk 0:00:29.9]} 27. Qxe3 {[%clk 0:01:38.6]} 27... Nxe3 {[%clk 0:00:30]} 28.
Rg1 {[%clk 0:01:39.4]} 28... Ng4+ {[%clk 0:00:21.6]} 29. Kg3 {[%clk 0:01:39.1]}
29... Nxf6 {[%clk 0:00:21.5]} 30. Bf3 {[%clk 0:01:38.8]} 30... Kf8 {[%clk
0:00:20.6]} 31. Kf2 {[%clk 0:01:37.7]} 31... d5 {[%clk 0:00:20.4]} 32. cxd5
{[%clk 0:01:35.9]} 32... Nxd5 {[%clk 0:00:20.7]} 33. f5 {[%clk 0:01:32]} 33...
Nf4 {[%clk 0:00:21]} 34. Rc6 {[%clk 0:01:27.8]} 34... Nd3+ {[%clk 0:00:17.3]}
35. Ke3 {[%clk 0:01:27.3]} 35... Ne5 {[%clk 0:00:17.6]} 36. Be4 {[%clk
0:01:20.7]} 36... Nxc6 {[%clk 0:00:17.1]} 37. Bxc6 {[%clk 0:01:21.6]} 37... Rd3+
{[%clk 0:00:17.4]} 38. Kf4 {[%clk 0:01:21.3]} 38... R8d4+ {[%clk 0:00:14.5]} 39.
Be4 {[%clk 0:01:19.3]} 39... exf5 {[%clk 0:00:12.5]} 40. Kxf5 {[%clk 0:01:20.2]}
40... Rd2 {[%clk 0:00:12]} 41. Rg5 {[%clk 0:01:14.1]} 41... Rf2+ {[%clk
0:00:08.5]} 42. Ke5 {[%clk 0:01:14.3]} 42... Rb4 {[%clk 0:00:04]} 43. Rxh5
{[%clk 0:01:08.1]} 43... Rb5+ {[%clk 0:00:04.2]} 44. Bd5 {[%clk 0:01:08.3]}
44... Rd2 {[%clk 0:00:03.1]} 45. Kd6 {[%clk 0:01:08.5]} 1-0

[Event "*** SCC Grand Prix: Titled Tuesday Blitz"]
[Site "Chess.com"]
[Date "2020.08.25"]
[Round "3"]
[White "David_Klein"]
[Black "Man-Chuk"]
[Result "0-1"]
[WhiteElo "2603"]
[BlackElo "2824"]
[TimeControl "180+1"]
[EndTime "10:29:41 PDT"]
[Termination "Man-Chuk won by resignation"]

1. e4 {[%clk 0:03:00.9]} 1... e5 {[%clk 0:02:59.8]} 2. Nf3 {[%clk 0:03:00.9]}
2... Nc6 {[%clk 0:02:59.8]} 3. Bb5 {[%clk 0:03:01]} 3... Nf6 {[%clk 0:02:59.2]}
4. d3 {[%clk 0:03:00.2]} 4... Bc5 {[%clk 0:02:58.1]} 5. Bxc6 {[%clk 0:02:59.3]}
5... dxc6 {[%clk 0:02:59]} 6. Nbd2 {[%clk 0:02:57.9]} 6... Nd7 {[%clk
0:02:57.2]} 7. Nc4 {[%clk 0:02:55.9]} 7... O-O {[%clk 0:02:48.4]} 8. Qe2 {[%clk
0:02:54.9]} 8... Re8 {[%clk 0:02:46.8]} 9. h4 {[%clk 0:02:49.6]} 9... b5 {[%clk
0:02:42.7]} 10. Ne3 {[%clk 0:02:48.1]} 10... Nf8 {[%clk 0:02:42.8]} 11. h5
{[%clk 0:02:46.4]} 11... Ne6 {[%clk 0:02:42.8]} 12. Nf5 {[%clk 0:02:44.2]} 12...
Nf4 {[%clk 0:02:36.7]} 13. Bxf4 {[%clk 0:02:39.4]} 13... exf4 {[%clk 0:02:36.9]}
14. g4 {[%clk 0:02:14]} 14... fxg3 {[%clk 0:02:16.8]} 15. Nxg3 {[%clk
0:02:11.5]} 15... Bg4 {[%clk 0:02:10]} 16. Kf1 {[%clk 0:01:46.9]} 16... f5
{[%clk 0:01:57.6]} 17. Kg2 {[%clk 0:01:38.8]} 17... fxe4 {[%clk 0:01:53.4]} 18.
Nxe4 {[%clk 0:01:34.5]} 18... Rf8 {[%clk 0:01:48.3]} 19. Ned2 {[%clk 0:01:17.9]}
19... Qd7 {[%clk 0:01:26.1]} 20. Qe5 {[%clk 0:01:12.2]} 20... Bd6 {[%clk
0:01:19.7]} 21. Qg5 {[%clk 0:01:11.5]} 21... Bf4 {[%clk 0:01:05.9]} 22. Qh4
{[%clk 0:01:07]} 22... Qf5 {[%clk 0:00:52.4]} 23. Rae1 {[%clk 0:00:59.8]} 23...
Bh6 {[%clk 0:00:45.8]} 24. Re4 {[%clk 0:00:56]} 24... Bxf3+ {[%clk 0:00:45]} 25.
Nxf3 {[%clk 0:00:54.1]} 25... Qxf3+ {[%clk 0:00:45.1]} 26. Kg1 {[%clk
0:00:54.5]} 26... Rae8 {[%clk 0:00:39.3]} 27. Rh3 {[%clk 0:00:52.1]} 27... Rxe4
{[%clk 0:00:38.3]} 28. dxe4 {[%clk 0:00:50.1]} 28... Qf4 {[%clk 0:00:35.6]} 29.
Qxf4 {[%clk 0:00:44.5]} 29... Rxf4 {[%clk 0:00:35.1]} 30. f3 {[%clk 0:00:45.1]}
30... Rf8 {[%clk 0:00:32.5]} 31. Rh2 {[%clk 0:00:42.3]} 31... Rxf3 {[%clk
0:00:30.4]} 32. Re2 {[%clk 0:00:41.9]} 32... Re3 {[%clk 0:00:27.7]} 33. Rf2
{[%clk 0:00:39.2]} 33... Rxe4 {[%clk 0:00:26.8]} 34. Kg2 {[%clk 0:00:39.8]}
34... Rd4 {[%clk 0:00:25]} 35. Re2 {[%clk 0:00:39.9]} 35... Rd2 {[%clk
0:00:24.5]} 36. Rxd2 {[%clk 0:00:40.4]} 36... Bxd2 {[%clk 0:00:25.1]} 37. Kf3
{[%clk 0:00:41.3]} 37... Kf7 {[%clk 0:00:24.9]} 38. Ke4 {[%clk 0:00:42.2]} 38...
g6 {[%clk 0:00:24.6]} 0-1

[Event "*** SCC Grand Prix: Titled Tuesday Blitz"]
[Site "Chess.com"]
[Date "2020.08.25"]
[Round "3"]
[White "BillieKimbah"]
[Black "dforcen"]
[Result "1-0"]
[WhiteElo "2876"]
[BlackElo "2623"]
[TimeControl "180+1"]
[EndTime "10:29:42 PDT"]
[Termination "BillieKimbah won by resignation"]

1. d4 {[%clk 0:03:00.9]} 1... Nf6 {[%clk 0:02:59]} 2. Nf3 {[%clk 0:02:59.2]}
2... g6 {[%clk 0:02:57]} 3. g3 {[%clk 0:02:55.6]} 3... Bg7 {[%clk 0:02:56.9]} 4.
Bg2 {[%clk 0:02:55.9]} 4... O-O {[%clk 0:02:56.9]} 5. O-O {[%clk 0:02:56.1]}
5... d6 {[%clk 0:02:52.6]} 6. Re1 {[%clk 0:02:56.2]} 6... Nc6 {[%clk 0:02:47.5]}
7. d5 {[%clk 0:02:55.5]} 7... Ne5 {[%clk 0:02:44.9]} 8. Nxe5 {[%clk 0:02:55]}
8... dxe5 {[%clk 0:02:45]} 9. c4 {[%clk 0:02:51.8]} 9... e6 {[%clk 0:02:38.9]}
10. Nc3 {[%clk 0:02:51.2]} 10... exd5 {[%clk 0:02:38.7]} 11. cxd5 {[%clk
0:02:50.4]} 11... Ne8 {[%clk 0:02:38.4]} 12. e4 {[%clk 0:02:45]} 12... Nd6
{[%clk 0:02:37.7]} 13. Be3 {[%clk 0:02:40.7]} 13... f5 {[%clk 0:02:35.8]} 14.
exf5 {[%clk 0:02:36.1]} 14... gxf5 {[%clk 0:02:35.3]} 15. Rc1 {[%clk 0:02:29.8]}
15... b6 {[%clk 0:01:38.7]} 16. f4 {[%clk 0:02:24.4]} 16... e4 {[%clk
0:01:36.7]} 17. Bd4 {[%clk 0:02:23.1]} 17... Qd7 {[%clk 0:01:28.9]} 18. Bf1
{[%clk 0:02:19.2]} 18... Bb7 {[%clk 0:01:27.7]} 19. Qd2 {[%clk 0:02:02.7]} 19...
Rad8 {[%clk 0:01:26.2]} 20. Rc2 {[%clk 0:01:56.3]} 20... Rfe8 {[%clk 0:01:21.6]}
21. a3 {[%clk 0:01:49.4]} 21... a6 {[%clk 0:01:19.1]} 22. Rec1 {[%clk
0:01:42.2]} 22... Qe7 {[%clk 0:00:50.5]} 23. Bxg7 {[%clk 0:01:38.1]} 23... Qxg7
{[%clk 0:00:50.1]} 24. Nd1 {[%clk 0:01:37.8]} 24... Re7 {[%clk 0:00:47.6]} 25.
Ne3 {[%clk 0:01:37.1]} 25... Qf7 {[%clk 0:00:47.5]} 26. Be2 {[%clk 0:01:27.7]}
26... h5 {[%clk 0:00:43.8]} 27. h4 {[%clk 0:01:22.1]} 27... Kh7 {[%clk
0:00:43.1]} 28. Kh2 {[%clk 0:01:22]} 28... Kh6 {[%clk 0:00:42.5]} 29. Qd4 {[%clk
0:01:18.1]} 29... Rg8 {[%clk 0:00:41.5]} 30. Rg1 {[%clk 0:01:12.8]} 30... Qg7
{[%clk 0:00:40.3]} 31. Qb4 {[%clk 0:01:07.1]} 31... Qf6 {[%clk 0:00:36.8]} 32.
Qc3 {[%clk 0:00:52.1]} 32... Qf8 {[%clk 0:00:31.4]} 33. a4 {[%clk 0:00:48.9]}
33... Qd8 {[%clk 0:00:29.9]} 34. Qf6+ {[%clk 0:00:46.9]} 34... Rg6 {[%clk
0:00:29.7]} 35. Nxf5+ {[%clk 0:00:39.1]} 35... Nxf5 {[%clk 0:00:29.7]} 36. Qxf5
{[%clk 0:00:40]} 36... Qxd5 {[%clk 0:00:30]} 37. Qf8+ {[%clk 0:00:38.9]} 37...
Reg7 {[%clk 0:00:28.7]} 38. f5 {[%clk 0:00:38.1]} 38... Rd6 {[%clk 0:00:19.1]}
1-0